bitfinex-derivatives/quotes_ETHF0:USTF0_20240925
["timestamp","ask_amount","ask_price","bid_price","bid_amount"]
[1727259739457,1.33195,2627.6,2627.5,3.2078]
[1727259739658,0.38058,2627.5,2627.4,0.38058]
[1727259739863,0.38058,2627.4,2627.3,4.97254943]
[1727259740165,0.74368,2627.4,2627.3,4.97254943]
[1727259740767,0.74368,2627.4,2627.3,3.97858]
[1727259742166,0.3631,2627.4,2627.3,3.97858]
[1727259742463,0.3631,2627.4,2627.3,5.07858]
[1727259742665,0.3631,2627.4,2627.3,1.87078]
[1727259742666,0.74368,2627.4,2627.3,1.87078]
[1727259742860,0.74368,2627.4,2627.3,5.07858]
[1727259743258,0.74368,2627.4,2627.3,1.87078]
[1727259743461,0.74368,2627.4,2627.3,5.07858]
[1727259743664,0.74368,2627.4,2627.3,3.97858]
[1727259743854,0.74368,2627.4,2627.3,5.07858]
[1727259745065,0.38058,2627.4,2627.3,5.07858]
[1727259749363,0.38058,2627.4,2627.3,1.87078]
[1727259749669,0.38057,2627.5,2627.4,0.38058]
[1727259750966,0.3895,2627.6,2627.5,0.38057]
[1727259751265,0.3977,2627.8,2627.7,0.38054]
[1727259751266,0.38053,2627.8,2627.7,0.38054]
[1727259751468,0.38053,2627.8,2627.7,1.48054]
[1727259751968,0.38053,2627.8,2627.7,1.88044]
[1727259752271,0.38053,2627.8,2627.7,0.78044]
[1727259754458,1.33184,2627.8,2627.7,0.3999]
[1727259755062,0.38053,2627.8,2627.7,0.78044]
[1727259755261,0.38053,2627.8,2627.6,0.7515]
[1727259755462,1.13064,2627.7,2627.6,0.7515]
[1727259756367,1.13064,2627.7,2627.6,1.13205]
[1727259760858,1.13064,2627.7,2627.6,0.75855]
[1727259761965,1.13064,2627.7,2627.6,0.38055]
[1727259765771,1.52994,2627.7,2627.6,0.38055]
[1727259766274,1.1494,2627.7,2627.6,0.38055]
[1727259767365,1.52994,2627.7,2627.6,0.38055]
[1727259767770,5.02221399,2627.7,2627.6,0.38055]
[1727259770584,3.49227399,2627.7,2627.6,0.38055]
[1727259771075,0.38054,2627.7,2627.6,0.38055]
[1727259771879,2.99545203,2627.9,2627.8,1.33183]
[1727259772074,2.99545203,2627.9,2627.8,5.63963]
[1727259772269,3.37595203,2628.0,2627.9,0.38051]
[1727259772677,2.99545203,2628.0,2627.9,0.38051]
[1727259773479,3.37594203,2628.0,2627.9,0.38051]
[1727259774783,0.38049,2628.0,2627.9,1.37447943]
[1727259775373,0.38049,2628.0,2627.9,0.38051]
[1727259780379,0.38051,2627.9,2627.8,4.34712]
[1727259780582,0.38051,2627.9,2627.7,2.45956943]
[1727259780583,0.38052,2627.8,2627.7,4.20176943]
[1727259780772,0.38054,2627.7,2627.6,1.38216943]
[1727259780972,1.1,2627.7,2627.6,1.76270943]
[1727259781181,1.1,2627.7,2627.6,0.76874]
[1727259781575,0.38054,2627.7,2627.6,0.76874]
[1727259782084,0.77073,2627.8,2627.7,0.38054]
[1727259784382,0.38054,2627.7,2627.6,0.76874]
[1727259786786,1.34152,2627.8,2627.7,0.38054]
[1727259786787,0.77073,2627.8,2627.7,0.38054]
[1727259789988,0.3902,2627.8,2627.7,0.38054]
[1727259790295,0.089,2628.5,2628.4,0.38044]
[1727259790588,0.3831,2628.8,2628.7,0.38039]
[1727259790780,0.76348,2628.8,2628.7,0.38039]
[1727259790994,0.3831,2628.8,2628.7,0.38039]
[1727259791384,0.76348,2628.8,2628.7,0.38039]
[1727259793691,0.76348,2628.8,2628.5,0.7668]
[1727259793692,0.76348,2628.8,2628.6,0.3804]
[1727259793991,0.3831,2628.8,2628.5,0.7668]
[1727259794293,0.3831,2628.8,2628.6,0.3804]
[1727259794896,0.76349,2628.8,2628.6,0.3804]
[1727259795193,0.3831,2628.8,2628.7,0.38039]
[1727259796182,0.4003,2628.9,2628.8,0.38038]
[1727259796380,0.3679,2629.3,2628.8,9.3918]
[1727259796590,0.3737,2629.5,2629.4,0.38029]
[1727259797585,0.75398,2629.5,2629.4,0.38029]
[1727259797788,0.3737,2629.5,2629.4,0.38029]
[1727259798091,3.49227399,2629.9,2629.4,11.46771528]
[1727259798287,0.38023,2629.9,2629.7,0.38024]
[1727259798499,0.7861,2630.1,2629.8,3.58803]
[1727259798500,0.38021,2630.0,2629.8,3.58803]
[1727259798687,0.38022,2629.9,2629.8,3.2078]
[1727259798885,0.38022,2629.9,2629.4,3.2078]
[1727259798886,0.38028,2629.5,2629.4,3.2078]
[1727259799092,3.2078,2629.9,2629.3,3.6045]
[1727259799093,0.38027,2629.6,2629.3,3.6045]
[1727259799300,0.38029,2629.4,2629.3,3.6045]
[1727259799504,0.38029,2629.4,2629.3,3.2078]
[1727259799687,1.1586,2629.5,2629.3,3.58811]
[1727259799688,1.53888,2629.5,2629.3,3.58811]
[1727259799888,0.38029,2629.4,2629.3,3.2078]
[1727259800095,0.38029,2629.4,2629.0,0.3967]
[1727259800096,0.38032,2629.3,2629.0,0.77704]
[1727259800791,0.95059,2629.8,2629.0,0.3967]
[1727259800989,0.95059,2629.8,2629.3,0.38029]
[1727259800990,0.3725,2629.7,2629.3,0.38029]
[1727259801192,0.38028,2629.5,2629.3,0.38029]
[1727259802898,0.38028,2629.5,2629.1,7.86546106]
[1727259802899,0.38028,2629.5,2629.2,0.38031]
[1727259803200,0.38028,2629.5,2629.2,0.38032]
[1727259803697,0.38028,2629.5,2629.3,0.3803]
[1727259805600,0.38027,2629.6,2629.4,0.38028]
[1727259806400,0.38027,2629.6,2629.5,0.3675]
[1727259807289,0.38028,2629.5,2629.3,0.3803]
[1727259808008,0.38028,2629.5,2629.2,0.74781]
[1727259808706,0.38028,2629.5,2629.3,0.38031]
[1727259809005,0.38029,2629.4,2629.2,0.74781]
[1727259809304,0.38031,2629.3,2629.2,0.3675]
[1727259810603,0.38031,2629.3,2629.1,3.58813]
[1727259810899,0.3987,2629.2,2629.1,3.58813]
[1727259811207,0.38029,2629.4,2629.2,0.38031]
[1727259811399,0.3987,2629.5,2629.3,2.38]
[1727259811606,0.3987,2629.5,2629.4,0.38029]
[1727259811903,0.38026,2629.7,2629.5,0.38027]
[1727259812092,0.77896,2629.7,2629.5,0.38027]
[1727259812499,0.06311182,2629.6,2629.5,0.38027]
[1727259813514,0.0631147,2629.6,2629.5,0.38027]
[1727259813699,0.4433747,2629.6,2629.4,0.75328]
[1727259813902,0.0631147,2629.5,2629.4,0.75328]
[1727259816105,0.4433947,2629.5,2629.4,0.75328]
[1727259816610,0.4433947,2629.5,2629.4,0.373]
[1727259816812,0.38029,2629.4,2629.3,5.5878]
[1727259817106,0.4434047,2629.4,2629.3,5.5878]
[1727259817604,0.06311705,2629.4,2629.3,5.5878]
[1727259817903,0.44340589,2629.4,2629.3,5.9681]
[1727259818105,0.38029,2629.4,2629.3,5.9681]
[1727259818302,0.06311557,2629.4,2629.3,5.9681]
[1727259818507,0.44340557,2629.4,2629.3,5.9681]
[1727259819306,0.44340557,2629.4,2629.3,2.7603]
[1727259819802,0.38029,2629.4,2629.3,2.7603]
[1727259821996,0.38031,2629.3,2629.2,0.38031]
[1727259822203,0.75481,2629.3,2629.2,0.38031]
[1727259822798,0.3745,2629.3,2629.2,0.38031]
[1727259823208,0.3745,2629.3,2629.2,2.76031]
[1727259824802,0.38031,2629.3,2629.1,3.2078]
[1727259825110,0.38031,2629.3,2629.2,0.38031]
[1727259825509,0.38032,2629.2,2629.1,7.23922899]
[1727259825705,0.77382,2629.2,2629.1,4.03142899]
[1727259826711,0.3935,2629.2,2629.1,4.41175899]
[1727259827405,0.3935,2629.2,2629.1,9.99955899]
[1727259830410,0.3935,2629.2,2629.1,8.71955899]
[1727259831506,0.3935,2629.2,2629.1,5.51175899]
[1727259831813,0.3935,2629.2,2629.1,8.71955899]
[1727259832811,0.3877,2629.4,2629.3,0.38031]
[1727259833009,0.3877,2629.4,2629.3,1.48031]
[1727259833402,0.3852,2629.6,2629.5,0.38028]
[1727259833700,0.38024,2629.8,2629.7,0.38023]
[1727259833906,0.756,2629.9,2629.6,0.38026]
[1727259833907,0.38025,2629.7,2629.6,0.38026]
[1727259835107,3.87252399,2629.7,2629.6,0.38026]
[1727259836114,4.36083395,2629.7,2629.6,0.38026]
[1727259837109,3.98058395,2629.7,2629.6,0.38026]
[1727259837715,3.98058395,2629.7,2629.6,2.75026]
[1727259838612,4.36083395,2629.7,2629.6,2.75026]
[1727259839702,4.36083395,2629.7,2629.6,0.38026]
[1727259840216,0.38025,2629.7,2629.6,0.38026]
[1727259840616,0.95065,2629.7,2629.4,3.2078]
[1727259840815,3.4883075,2629.5,2629.4,3.2078]
[1727259841016,0.3803,2629.4,2629.3,0.38029]
[1727259841216,1.5203,2629.4,2629.3,0.38029]
[1727259841511,5.50693715,2629.4,2629.3,0.38029]
[1727259842119,5.57005229,2629.4,2629.3,0.38029]
[1727259842322,1.58341514,2629.4,2629.3,0.38029]
[1727259842617,1.20311514,2629.4,2629.3,0.38029]
[1727259843008,1.58340514,2629.4,2629.3,0.38029]
[1727259843410,1.52029,2629.4,2629.3,0.38029]
[1727259843611,1.14,2629.4,2629.3,2.75029]
[1727259844922,1.52029,2629.4,2629.3,2.75029]
[1727259846519,1.14,2629.4,2629.3,2.75029]
[1727259849420,1.52029,2629.4,2629.3,2.75029]
[1727259849729,1.58340553,2629.4,2629.3,2.75029]
[1727259850117,1.52029,2629.4,2629.3,2.75029]
[1727259850623,1.14,2629.4,2629.3,2.75029]
[1727259852123,1.52029,2629.4,2629.3,2.75029]
[1727259853022,1.52029,2629.4,2629.3,0.38029]
[1727259854422,1.52029,2629.4,2629.3,1.48029]
[1727259855126,1.14,2629.4,2629.3,1.48029]
[1727259857331,5.12663715,2629.4,2629.3,1.48029]
[1727259858121,5.12663715,2629.4,2629.3,2.23319]
[1727259859135,5.12663715,2629.4,2629.3,3.18396]
[1727259860632,3.49240613,2629.4,2629.3,3.18398]
[1727259861121,4.37443715,2629.6,2629.4,1.33102]
[1727259861122,3.49240613,2629.5,2629.4,1.33102]
[1727259861318,3.49240613,2629.5,2629.4,2.43102]
[1727259861530,3.49240613,2629.5,2629.4,7.18495]
[1727259861731,3.49240613,2629.6,2629.5,0.38028]
[1727259861938,3.49240613,2629.6,2629.5,4.53878]
[1727259862228,3.98663715,2629.8,2629.6,0.38026]
[1727259862229,3.49240613,2629.7,2629.6,0.38026]
[1727259862422,3.49240613,2629.7,2629.6,1.48026]
[1727259865324,5.12763715,2629.9,2629.8,0.38023]
[1727259865530,1.141,2629.9,2629.8,4.68803]
[1727259866433,1.52122,2629.9,2629.8,1.1]
[1727259866623,1.52122,2629.9,2629.3,2.158]
[1727259866624,0.38028,2629.6,2629.3,2.158]
[1727259866823,1.1554,2629.5,2629.4,0.38029]
[1727259867127,1.53568,2629.5,2629.4,4.69607386]
[1727259867329,1.53568,2629.5,2629.4,1.48029]
[1727259867830,0.3803,2629.4,2629.3,1.1]
[1727259868422,1.1554,2629.5,2629.2,3.2078]
[1727259868423,0.38031,2629.3,2629.2,3.2078]
[1727259868620,0.38031,2629.3,2629.2,1.48032]
[1727259870435,0.38032,2629.2,2629.1,2.75032]
[1727259870921,0.38032,2629.2,2629.1,6.2805088]
[1727259871126,0.38031,2629.3,2629.2,0.38031]
[1727259872427,3.87271613,2629.3,2629.2,0.38031]
[1727259872626,0.38032,2629.2,2629.1,6.2805188]
[1727259872830,0.38032,2629.2,2629.1,5.9001888]
[1727259873035,0.38032,2629.2,2629.1,0.38033]
[1727259873227,0.38035,2629.0,2628.9,3.2078]
[1727259873531,0.38035,2629.0,2628.9,3.58816]
[1727259874032,0.38035,2629.0,2628.9,3.2078]
[1727259874334,0.38035,2629.0,2628.9,3.58816]
[1727259874832,5.02815613,2629.1,2629.0,0.38035]
[1727259875035,1.53575,2629.1,2629.0,2.75035]
[1727259876526,1.53575,2629.1,2629.0,2.37]
[1727259877138,0.7594,2629.1,2629.0,2.75035]
[1727259877323,0.7594,2629.1,2629.0,3.11775]
[1727259878647,0.3756,2629.1,2629.0,3.11775]
[1727259879029,4.27181613,2629.3,2629.2,0.38032]
[1727259879230,4.70003675,2629.3,2629.2,2.75032]
[1727259880527,1.14451,2629.3,2629.2,2.75032]
[1727259882434,1.14451,2629.3,2629.2,0.38032]
[1727259890541,0.38032,2629.2,2629.1,2.75033]
[1727259890735,3.86846127,2629.2,2629.1,2.75033]
[1727259891236,0.38033,2629.1,2629.0,3.58815]
[1727259891440,0.38033,2629.1,2629.0,3.2078]
[1727259891637,0.38033,2629.1,2629.0,3.58815]
[1727259892436,0.38033,2629.1,2629.0,4.68815]
[1727259892837,1.33117,2629.1,2629.0,3.2078]
[1727259893237,1.33117,2629.1,2628.9,1.1]
[1727259893238,0.38035,2629.0,2628.9,1.1]
[1727259893438,4.25669127,2629.0,2628.9,1.1]
[1727259894237,4.25669127,2629.0,2628.9,1.48036]
[1727259894545,0.76855,2629.0,2628.9,1.1]
[1727259894843,4.25669127,2629.0,2628.9,1.1]
[1727259895746,0.76855,2629.0,2628.9,1.48036]
[1727259897437,0.76855,2629.0,2628.9,4.68816]
[1727259897639,1.71943,2629.0,2628.9,4.3078]
[1727259897843,1.71943,2629.0,2628.9,1.1]
[1727259900544,1.71943,2629.0,2628.9,1.48036]
[1727259900750,0.76855,2629.0,2628.9,1.48036]
[1727259903145,0.38035,2629.0,2628.9,1.1]
[1727259903345,0.38035,2629.0,2628.9,1.48036]
[1727259907047,0.38035,2629.0,2628.9,1.1]
[1727259907744,0.38039,2628.8,2628.7,1.48038]
[1727259907950,0.38039,2628.7,2628.6,3.2078]
[1727259908145,0.74999,2628.7,2628.6,3.2078]
[1727259908849,5.38963127,2629.4,2628.8,0.38038]
[1727259908850,0.95084,2629.2,2628.8,0.38038]
[1727259909153,8.66749886,2629.9,2629.4,0.38029]
[1727259909154,0.7585,2629.5,2629.4,0.38029]
[1727259909354,3.48814127,2630.2,2629.4,0.38029]
[1727259909355,0.444,2630.3,2629.4,3.2078]
[1727259909542,0.3847,2629.8,2629.7,3.2078]
[1727259909743,0.3835,2630.1,2629.7,4.68805]
[1727259909948,0.3835,2630.1,2629.9,1.1]
[1727259909949,0.06310399,2630.0,2629.9,1.1]
[1727259910347,0.06310399,2630.0,2629.8,2.37]
[1727259910950,4.25634127,2630.1,2629.8,2.37]
[1727259914238,4.25634127,2630.1,2629.8,2.75023]
[1727259914453,4.25634127,2630.1,2629.8,2.37]
[1727259915047,0.7682,2630.1,2629.8,2.37]
[1727259915245,0.7682,2630.1,2629.8,2.75023]
[1727259915446,0.7682,2630.1,2629.8,2.37]
[1727259915756,0.7682,2630.1,2629.8,2.75022]
[1727259915943,4.25634127,2630.1,2629.8,2.75022]
[1727259916256,4.25634127,2630.1,2629.8,2.37]
[1727259916554,0.7682,2630.1,2629.8,2.37]
[1727259916855,0.7682,2630.1,2629.8,2.75023]
[1727259917853,0.7682,2630.1,2629.9,0.38022]
[1727259918051,0.7682,2630.1,2629.8,2.37]
[1727259918245,3.2078,2630.4,2630.0,2.75019]
[1727259918444,0.4013,2630.3,2630.0,2.75019]
[1727259918648,0.4013,2630.3,2630.1,0.38019]
[1727259919346,0.4013,2630.3,2630.0,2.37]
[1727259919650,0.4013,2630.3,2630.2,0.38018]
[1727259919847,4.2029,2630.3,2630.2,0.38018]
[1727259920352,10.60164886,2631.1,2630.6,0.38011]
[1727259920353,7.97722127,2630.9,2630.6,0.38011]
[1727259920555,7.97722127,2630.9,2630.5,3.58793]
[1727259920556,0.3851,2630.7,2630.5,3.58793]
[1727259920752,0.3851,2630.7,2630.6,0.38012]
[1727259921552,0.3851,2630.7,2630.5,3.98302]
[1727259922556,0.76521,2630.7,2630.5,0.3951]
[1727259922746,0.76521,2630.7,2630.5,0.77523]
[1727259923464,0.76521,2630.7,2630.5,0.3951]
[1727259923750,0.76521,2630.7,2630.5,0.77523]
[1727259924147,0.76521,2630.7,2630.5,0.3951]
[1727259924353,0.76521,2630.7,2630.5,0.77523]
[1727259924545,0.3705,2630.9,2630.5,0.3951]
[1727259924750,1.1534,2630.8,2630.5,3.14522]
[1727259924949,1.1534,2630.8,2630.6,0.38012]
[1727259925955,5.14003715,2630.8,2630.6,0.38012]
[1727259926149,0.06308315,2630.7,2630.6,0.38012]
[1727259926756,3.53559527,2630.7,2630.6,0.38012]
[1727259928458,3.91570527,2630.7,2630.5,3.14522]
[1727259928761,0.06308315,2630.6,2630.5,3.14522]
[1727259928948,0.44320463,2630.6,2630.5,3.14522]
[1727259929146,0.06308463,2630.6,2630.5,3.14522]
[1727259929457,0.44320463,2630.6,2630.5,3.14522]
[1727259929857,0.06308463,2630.6,2630.5,3.14522]
[1727259930649,0.44320463,2630.6,2630.5,2.7651]
[1727259930857,3.86468463,2630.6,2630.2,3.58796]
[1727259931059,3.86468463,2630.6,2630.1,0.38018]
[1727259931060,0.46438463,2630.5,2630.1,0.38018]
[1727259931258,0.38016,2630.3,2630.2,0.38017]
[1727259931460,0.44324463,2630.3,2630.2,0.38017]
[1727259931761,0.44324463,2630.3,2630.1,0.38018]
[1727259931961,0.06308463,2630.2,2630.1,0.38018]
[1727259932456,0.38019,2630.1,2630.0,1.4799]
[1727259932661,0.84458293,2630.1,2630.0,1.4799]
[1727259932867,0.78149,2630.1,2630.0,1.4799]
[1727259933163,0.38017,2630.3,2630.2,0.38018]
[1727259933466,0.38016,2630.3,2630.2,1.1]
[1727259936163,0.38018,2630.2,2630.1,1.1]
[1727259936554,0.38018,2630.2,2630.1,1.48019]
[1727259937458,0.38018,2630.2,2630.1,1.1]
[1727259938156,0.38018,2630.2,2630.1,1.48019]
[1727259938467,0.38018,2630.2,2630.1,1.1]
[1727259939560,0.38017,2630.3,2630.2,0.38017]
[1727259939760,0.38017,2630.3,2630.2,1.48017]
[1727259940653,0.38017,2630.3,2630.2,1.48018]
[1727259940856,0.77885,2630.4,2630.3,0.38016]
[1727259942168,0.77885,2630.4,2630.2,1.48017]
[1727259942169,0.38016,2630.3,2630.2,1.48017]
[1727259943066,0.77886,2630.4,2630.3,0.38016]
[1727259944458,3.86681212,2630.7,2630.3,3.8016]
[1727259944768,3.86681212,2630.7,2630.2,1.1]
[1727259944769,0.7744,2630.7,2630.6,1.1]
[1727259946460,0.3801,2630.7,2630.6,1.48012]
[1727259946658,0.3801,2630.7,2630.6,1.1]
[1727259950063,1.33036,2630.7,2630.6,1.1]
[1727259951075,0.38013,2630.5,2630.4,3.2078]
[1727259951277,0.38015,2630.4,2630.3,1.1]
[1727259951569,0.7844,2630.4,2630.1,1.1]
[1727259951875,0.7844,2630.4,2630.0,3.5773]
[1727259951876,0.38016,2630.3,2630.2,0.38017]
[1727259952067,0.38016,2630.3,2630.2,1.48017]
[1727259952569,1.16456,2630.4,2630.2,1.48017]
[1727259953774,0.38016,2630.3,2630.2,1.48017]
[1727259954176,1.16455,2630.4,2630.2,1.1]
[1727259954564,1.16455,2630.4,2630.3,0.38016]
[1727259955676,1.16455,2630.4,2630.3,0.3689]
[1727259958671,1.16455,2630.4,2630.3,0.74906]
[1727259958871,1.16455,2630.4,2630.3,0.3689]
[1727259959670,1.16455,2630.4,2630.3,3.95686]
[1727259961481,0.7844,2630.4,2630.3,3.95686]
[1727259963175,5.23552897,2630.4,2630.3,3.95686]
[1727259965180,5.61567897,2630.4,2630.3,3.95686]
[1727259965780,5.61567897,2630.4,2630.3,3.2078]
[1727259965979,0.38016,2630.3,2630.2,1.48017]
[1727259966180,4.86590287,2630.3,2630.2,1.48017]
[1727259966481,5.65029287,2630.4,2630.3,0.38016]
[1727259966677,5.27014287,2630.4,2630.3,0.38016]
[1727259966880,5.27014287,2630.4,2630.3,3.99006]
[1727259967188,4.48574287,2630.5,2630.4,0.38015]
[1727259967375,4.48574287,2630.5,2630.4,1.88255]
[1727259967976,4.94569886,2630.6,2630.5,0.38013]
[1727259967977,4.86586287,2630.6,2630.5,0.38013]
[1727259970080,0.38012,2630.6,2630.5,0.38013]
[1727259971975,0.38011,2630.7,2630.6,0.38011]
[1727259972188,0.38011,2630.7,2630.6,1.1]
[1727259973382,0.38011,2630.7,2630.6,1.48012]
[1727259974989,0.749,2630.8,2630.7,0.3801]
[1727259975185,0.355,2631.2,2630.7,0.3801]
[1727259975186,0.76504,2631.2,2631.0,0.38005]
[1727259975393,0.789,2631.1,2631.0,3.58785]
[1727259975781,0.789,2631.1,2631.0,0.38005]
[1727259976088,0.789,2631.1,2631.0,3.58785]
[1727259976486,1.16905,2631.1,2631.0,3.58785]
[1727259976789,1.16905,2631.1,2631.0,1.1]
[1727259977786,0.789,2631.1,2631.0,1.48006]
[1727259977990,1.16905,2631.1,2631.0,1.48006]
[1727259978295,0.789,2631.1,2631.0,1.48006]
[1727259979197,5.26939902,2631.1,2631.0,1.48006]
[1727259980600,5.64944902,2631.1,2631.0,1.48006]
[1727259980888,5.26939902,2631.1,2631.0,1.48006]
[1727259981293,5.26939902,2631.1,2631.0,15.9698113]
[1727259981294,3.98091408,2631.1,2631.0,15.9698113]
[1727259981495,0.3711,2631.6,2631.0,15.9698113]
[1727259981496,1.1089,2631.6,2631.5,0.37999]
[1727259981689,1.1089,2631.6,2631.5,4.68779]
[1727259982295,0.7378,2631.6,2631.5,4.68779]
[1727259982893,0.7378,2631.6,2631.5,4.3078]
[1727259983100,0.7378,2631.6,2631.5,4.68779]
[1727259983297,1.11777,2631.6,2631.5,4.3078]
[1727259983491,0.37999,2631.5,2631.4,1.1]
[1727259983689,1.1018,2631.6,2631.4,1.1]
[1727259983898,1.1018,2631.6,2631.4,1.48]
[1727259984195,1.1018,2631.6,2631.5,1.47999]
[1727259984895,1.1018,2631.6,2631.5,1.1]
[1727259985286,1.1018,2631.6,2631.5,1.47999]
[1727259986088,1.1018,2631.6,2631.5,1.1]
[1727259986701,1.16485984,2631.6,2631.2,3.9775]
[1727259986997,0.38001,2631.4,2631.2,5.08232]
[1727259987205,0.37999,2631.5,2631.2,4.7023]
[1727259987498,0.37999,2631.5,2631.2,5.08232]
[1727259987695,2.05176,2631.6,2631.2,3.6023]
[1727259987897,0.38001,2631.4,2631.2,1.48003]
[1727259988386,0.44308626,2631.3,2631.2,1.1]
[1727259988589,0.44308626,2631.3,2631.2,1.48003]
[1727259988590,0.06306666,2631.3,2631.2,1.48003]
[1727259988789,0.44308666,2631.3,2631.2,1.1]
[1727259989801,0.44308666,2631.3,2631.2,1.48003]
[1727259990193,0.38003,2631.2,2631.1,0.75534]
[1727259990396,0.38003,2631.2,2631.0,1.48005]
[1727259990397,0.38005,2631.1,2631.0,1.48005]
[1727259990694,0.38005,2631.1,2631.0,1.1]
[1727259990900,0.38006,2631.0,2630.9,0.38007]
[1727259991096,0.3634,2631.1,2631.0,0.38006]
[1727259991300,0.74345,2631.1,2631.0,1.48006]
[1727259991503,0.74345,2631.1,2631.0,1.1]
[1727259991700,0.80652308,2631.1,2631.0,1.1]
[1727259992098,0.38006,2631.0,2630.9,1.1]
[1727259992301,1.33026,2630.9,2630.8,3.2078]
[1727259992502,0.3801,2630.8,2630.6,1.1]
[1727259992698,0.3801,2630.8,2630.6,1.48011]
[1727259992699,0.7652,2630.8,2630.6,1.48011]
[1727259992900,1.1453,2630.8,2630.7,1.1]
[1727259993205,1.1453,2630.8,2630.7,1.4801]
[1727259993605,1.1453,2630.8,2630.7,1.1]
[1727260002597,3.97459499,2631.1,2631.0,0.38006]
[1727260002802,4.96714757,2631.3,2631.0,4.3078]
[1727260002803,0.38003,2631.3,2631.0,4.3078]
[1727260003095,0.38003,2631.3,2631.2,1.1]
[1727260004709,0.38003,2631.3,2630.6,3.2078]
[1727260004710,11.85087,2631.3,2630.6,3.2078]
[1727260004999,0.38008,2630.9,2630.7,0.3801]
[1727260005201,0.3801,2630.7,2630.6,4.6906]
[1727260005394,0.38008,2630.9,2630.7,0.38009]
[1727260006000,0.38009,2630.8,2630.6,5.07071]
[1727260006199,1.11739,2630.8,2630.7,0.3801]
[1727260006396,0.7373,2630.8,2630.6,3.5906]
[1727260006599,8.62818933,2631.2,2630.7,2.37]
[1727260006891,0.38006,2631.0,2630.7,2.75009]
[1727260007097,0.38007,2630.9,2630.8,0.3851]
[1727260007294,0.7708,2631.1,2630.8,0.3851]
[1727260007496,0.3721,2631.1,2631.0,5.95786]
[1727260007899,0.3721,2631.1,2631.0,3.2078]
[1727260007900,0.75215,2631.1,2631.0,3.2078]
[1727260008105,0.3721,2631.1,2631.0,3.58786]
[1727260010600,0.38003,2631.2,2631.0,3.58786]
[1727260010808,0.38002,2631.3,2631.0,5.5778]
[1727260011005,0.38002,2631.3,2631.1,0.3913]
[1727260011402,1.12531,2631.4,2631.2,0.75342]
[1727260011902,0.38002,2631.3,2631.2,0.75342]
[1727260014112,0.38002,2631.3,2631.2,0.3734]
[1727260014906,1.12531,2631.4,2631.2,0.75343]
[1727260015104,0.38002,2631.3,2631.2,0.3734]
[1727260015300,4.85030933,2631.3,2631.2,0.3734]
[1727260015506,4.47028933,2631.3,2631.2,0.75343]
[1727260016905,4.53335508,2631.3,2631.2,0.75343]
[1727260017814,4.91337508,2631.3,2631.2,0.75343]
[1727260018315,4.91337508,2631.3,2631.2,0.3734]
[1727260019213,4.91337508,2631.3,2631.2,0.75343]
[1727260020316,4.91337508,2631.3,2631.2,0.3734]
[1727260020517,4.85030933,2631.3,2631.2,0.3734]
[1727260020816,4.53335508,2631.3,2631.2,0.75343]
[1727260021215,4.53335507,2631.3,2631.2,0.75343]
[1727260023012,0.06306699,2631.3,2631.2,0.75343]
[1727260023511,5.71244757,2631.4,2631.3,0.38002]
[1727260023512,0.7453,2631.4,2631.3,0.38002]
[1727260023721,0.06306534,2631.4,2631.3,4.75083]
[1727260023927,1.15446,2631.8,2631.3,8.20809918]
[1727260024228,1.15446,2631.8,2631.6,2.74996]
[1727260024922,0.37996,2631.7,2631.6,2.37]
[1727260025120,0.7745,2631.8,2631.6,2.74997]
[1727260025325,0.37996,2631.7,2631.6,2.37]
[1727260025520,0.37996,2631.7,2631.5,3.58778]
[1727260025921,0.37996,2631.7,2631.6,0.37997]
[1727260026124,0.37996,2631.7,2631.5,3.58778]
[1727260027321,1.72437,2631.8,2631.5,3.2078]
[1727260027621,0.37997,2631.6,2631.5,3.2078]
[1727260028014,0.37996,2631.7,2631.5,3.58778]
[1727260028415,0.7745,2631.8,2631.5,3.97178]
[1727260028625,0.37997,2631.7,2631.5,3.97178]
[1727260029123,0.37997,2631.7,2631.6,0.37997]
[1727260030028,0.37997,2631.7,2631.5,3.97178]
[1727260030328,0.7745,2631.8,2631.6,0.37997]
[1727260030535,5.74164757,2631.8,2631.6,0.37997]
[1727260030926,0.37997,2631.7,2631.5,3.97178]
[1727260031222,4.47690819,2631.6,2631.5,3.97178]
[1727260032026,4.85687819,2631.6,2631.5,3.97178]
[1727260032231,4.47690819,2631.6,2631.5,3.97178]
[1727260032729,4.85687819,2631.6,2631.5,3.97178]
[1727260033029,4.85687819,2631.6,2631.5,3.5918]
[1727260033631,4.47690819,2631.6,2631.5,3.97179]
[1727260033933,4.85687819,2631.6,2631.5,3.97179]
[1727260034125,4.85687819,2631.6,2631.5,3.2078]
[1727260034325,4.85688819,2631.6,2631.4,0.38]
[1727260034728,4.47690819,2631.6,2631.5,0.37999]
[1727260034931,4.85687819,2631.6,2631.5,0.37999]
[1727260035129,4.85687819,2631.6,2631.4,0.37999]
[1727260035428,4.85687819,2631.6,2631.5,0.37999]
[1727260035629,4.85687819,2631.6,2631.4,0.37999]
[1727260036030,4.85687819,2631.6,2631.3,3.9635444]
[1727260036031,0.37999,2631.5,2631.3,3.9635444]
[1727260036223,0.3674,2631.4,2631.3,4.3435444]
[1727260036531,0.7434,2631.4,2631.3,4.3435444]
[1727260036829,4.47690819,2631.6,2631.5,0.37999]
[1727260037028,4.47690819,2631.7,2631.5,5.5778]
[1727260037225,3.58771,2632.1,2631.8,0.37994]
[1727260037226,4.47690819,2631.9,2631.8,0.37994]
[1727260037428,4.47690819,2632.0,2631.9,0.37993]
[1727260037822,4.85682819,2632.0,2631.9,0.37993]